fUST/lending_fUST_20240118
["ID","MTS","AMOUNT","RATE_DAILY","PERIOD"]
[311944462,1705511451467,-500.0,0.00022465,2]
[311944464,1705511451476,-500.0,0.00022465,2]
[311944466,1705511451485,-500.0,0.00022465,2]
[311944468,1705511451495,-500.0,0.00022465,2]
[311944470,1705511451505,-500.0,0.00022465,2]
[311944472,1705511451515,-500.0,0.00022465,2]
[311944474,1705511451524,-500.0,0.00022465,2]
[311944475,1705511451533,-515.2302821,0.00022465,2]
[311944477,1705511451542,-500.0,0.00022465,2]
[311944479,1705511451552,-500.0,0.00022465,2]
[311944481,1705511451562,-500.0,0.00022465,2]
[311944483,1705511451571,-500.0,0.00022465,2]
[311944485,1705511451581,-500.0,0.00022465,2]
[311944487,1705511451591,-515.76,0.00022465,2]
[311944489,1705511451601,-500.0,0.00022465,2]
[311944491,1705511451610,-500.0,0.00022465,2]
[311944493,1705511451620,-500.0,0.00022465,2]
[311944495,1705511451631,-826.41,0.00022465,2]
[311944497,1705511451642,-500.0,0.00022465,2]
[311944498,1705511451653,-500.0,0.00022465,2]
[311944500,1705511451664,-500.0,0.00022465,2]
[311944502,1705511451673,-500.0,0.00022465,2]
[311944504,1705511451683,-500.0,0.00022465,2]
[311944506,1705511451692,-500.0,0.00022465,2]
[311944508,1705511451703,-988.64,0.00022465,2]
[311944510,1705511451712,-500.0,0.00022465,2]
[311944512,1705511451721,-629.83,0.00022465,2]
[311944514,1705511451731,-500.0,0.00022465,2]
[311944516,1705511451741,-419.76471444,0.00022465,2]
[311944518,1705511451751,-500.0,0.00022465,2]
[311944520,1705511451761,-500.0,0.00022465,2]
[311944522,1705511451770,-500.0,0.00022465,2]
[311944524,1705511451780,-604.26006591,0.00022465,2]
[311944526,1705511451789,-1783.06,0.00022465,2]
[311944529,1705511451814,-510.54,0.00022465,2]
[311944532,1705511451831,-500.0,0.00022465,2]
[311944534,1705511451850,-627.6,0.00022465,2]
[311944537,1705511451869,-500.0,0.00022465,2]
[311944540,1705511451885,-541.59308008,0.00022465,2]
[311944542,1705511451903,-500.0,0.00022465,2]
[311944545,1705511451919,-500.0,0.00022465,2]
[311944548,1705511451937,-500.0,0.00022465,2]
[311944550,1705511451953,-500.0,0.00022465,2]
[311944553,1705511451970,-478.85011104,0.00022465,2]
[311944556,1705511451991,-226.60879206,0.00022465,2]
[311944558,1705511452009,-5429.02,0.00022465,2]
[311944561,1705511452023,-799.35,0.00022465,2]
[311944563,1705511452039,-500.0,0.00022465,2]
[311944566,1705511452053,-500.0,0.00022465,2]
[311944568,1705511452067,-421.22353423,0.00022465,2]
[311944570,1705511452082,-500.0,0.00022465,2]
[311944573,1705511452095,-919.8,0.00022465,2]
[311944575,1705511452109,-539.93,0.00022465,2]
[311944577,1705511452123,-439.13477728,0.00022465,2]
[311944580,1705511452136,-1847.21,0.00022465,2]
[311944582,1705511452151,-500.0,0.00022465,2]
[311944584,1705511452165,-500.0,0.00022465,2]
[311944587,1705511452179,-589.25,0.00022465,2]
[311944589,1705511452192,-500.0,0.00022465,2]
[311944592,1705511452207,-500.0,0.00022465,2]
[311944594,1705511452220,-1074.3,0.00022465,2]
[311944596,1705511452233,-500.0,0.00022465,2]
[311944599,1705511452248,-500.0,0.00022465,2]
[311944601,1705511452262,-500.0,0.00022465,2]
[311944604,1705511452275,-1475.16,0.00022465,2]
[311944606,1705511452289,-879.42,0.00022465,2]
[311944608,1705511452303,-500.0,0.00022465,2]
[311944611,1705511452317,-500.0,0.00022465,2]
[311944613,1705511452332,-1239.9,0.00022465,2]
[311944616,1705511452347,-1687.12,0.00022465,2]
[311944618,1705511452362,-9544.11,0.00022465,2]
[311944619,1705511452375,-500.0,0.00022465,2]
[311944620,1705511452388,-500.0,0.00022465,2]
[311944621,1705511452402,-1107.92,0.00022465,2]
[311944622,1705511452489,-500.0,0.00022465,2]
[311944623,1705511452498,-500.0,0.00022465,2]
[311944624,1705511452507,-8615.35,0.00022465,2]
[311944625,1705511452516,-500.0,0.00022465,2]
[311944626,1705511452525,-282.50659396,0.00022465,2]
[311944627,1705511452534,-500.0,0.00022465,2]
[311944628,1705511452543,-500.0,0.00022465,2]
[311944629,1705511452552,-500.0,0.00022465,2]
[311944630,1705511452562,-500.0,0.00022465,2]
[311944631,1705511452570,-1397.54,0.00022465,2]
[311944632,1705511452579,-500.0,0.00022465,2]
[311944633,1705511452588,-503.55172519,0.00022465,2]
[311944634,1705511452598,-502.5187616,0.00022465,2]
[311944635,1705511452607,-500.0,0.00022465,2]
[311944636,1705511452616,-1038.52,0.00022465,2]
[311944637,1705511452625,-500.0,0.00022465,2]
[311944638,1705511452634,-500.0,0.00022465,2]
[311944639,1705511452642,-3716.35,0.00022465,2]
[311944640,1705511452652,-500.0,0.00022465,2]
[311944641,1705511452662,-500.0,0.00022465,2]
[311944642,1705511452670,-500.0,0.00022465,2]
[311944643,1705511452680,-500.0,0.00022465,2]
[311944644,1705511452689,-5198.47,0.00022465,2]
[311944645,1705511452698,-19836.71,0.00022465,2]
[311944646,1705511452707,-239.57751721,0.00022465,2]
[311944647,1705511452716,-518.13,0.00022465,2]
[311944648,1705511452725,-6036.66,0.00022465,2]
[311944649,1705511452734,-153.0,0.00022466,2]
[311944650,1705511452743,-240.3506667,0.00022466,2]
[311944651,1705511452752,-153.0,0.00022466,2]
[311944653,1705511452761,-153.0,0.00022466,2]
[311944654,1705511452769,-153.0,0.00022466,2]
[311944656,1705511452779,-153.0,0.00022466,2]
[311944658,1705511452788,-153.0,0.00022466,2]
[311944660,1705511452798,-819.82,0.00022601,2]
[311944662,1705511452807,-819.82,0.00022601,2]
[311944664,1705511452816,-151.0,0.00022602,2]
[311944666,1705511452826,-272.707937,0.00022602,2]
[311944668,1705511452835,-272.707937,0.00022602,2]
[311944670,1705511452844,-500.0,0.00022602,2]
[311944672,1705511452853,-1035.93,0.00022602,2]
[311944674,1705511452862,-500.0,0.00022602,2]
[311944676,1705511452871,-500.0,0.00022602,2]
[311944678,1705511452880,-500.0,0.00022602,2]
[311944680,1705511452889,-500.0,0.00022602,2]
[311944682,1705511452898,-635.29,0.00022602,2]
[311944684,1705511452907,-500.0,0.00022602,2]
[311944686,1705511452917,-500.0,0.00022602,2]
[311944688,1705511452926,-500.0,0.00022602,2]
[311944690,1705511452936,-500.0,0.00022602,2]
[311944692,1705511452945,-500.0,0.00022602,2]
[311944694,1705511452954,-1760.45,0.00022602,2]
[311944696,1705511452964,-500.0,0.00022602,2]
[311944698,1705511452973,-500.0,0.00022602,2]
[311944700,1705511452983,-500.0,0.00022602,2]
[311944702,1705511452997,-918.46,0.00022602,2]
[311944704,1705511453006,-500.0,0.00022602,2]
[311944706,1705511453016,-500.0,0.00022602,2]
[311944708,1705511453025,-500.0,0.00022602,2]
[311944709,1705511453034,-500.0,0.00022602,2]
[311944711,1705511453043,-500.0,0.00022602,2]
[311944713,1705511453053,-500.0,0.00022602,2]
[311944715,1705511453062,-500.0,0.00022602,2]
[311944717,1705511453072,-330.22861713,0.00022602,2]
[311944731,1705511453194,-185.53138287,0.00022602,2]
[311944733,1705511453203,-500.0,0.00022602,2]
[311944735,1705511453213,-500.0,0.00022602,2]
[311944737,1705511453222,-490.57231035,0.00022602,2]
[311944739,1705511453231,-826.41,0.00022602,2]
[311944741,1705511453240,-500.0,0.00022602,2]
[311944743,1705511453249,-500.0,0.00022602,2]
[311944745,1705511453259,-500.0,0.00022602,2]
[311944747,1705511453268,-679.92789559,0.00022602,2]
[311944749,1705511453279,-308.71210441,0.00022602,2]
[311944751,1705511453289,-375.57578081,0.00022602,2]
[311944753,1705511453298,-629.83,0.00022602,2]
[311944755,1705511453308,-500.0,0.00022602,2]
[311944757,1705511453317,-500.0,0.00022602,2]
[311944759,1705511453326,-500.0,0.00022602,2]
[311944761,1705511453335,-500.0,0.00022602,2]
[311944763,1705511453345,-1783.06,0.00022602,2]
[311944765,1705511453354,-510.54,0.00022602,2]
[311944767,1705511453364,-382.10153479,0.00022602,2]
[311944789,1705511453575,-245.49846521,0.00022602,2]
[311944791,1705511453585,-500.0,0.00022602,2]
[311944793,1705511453595,-500.0,0.00022602,2]
[311944795,1705511453604,-509.33393078,0.00022602,2]
[311944797,1705511453614,-5429.02,0.00022602,2]
[311944799,1705511453624,-799.35,0.00022602,2]
[311944801,1705511453634,-558.32597488,0.00022602,2]
[311944803,1705511453643,-500.0,0.00022602,2]
[311944805,1705511453653,-500.0,0.00022602,2]
[311944807,1705511453662,-919.8,0.00022602,2]
[311944809,1705511453671,-539.93,0.00022602,2]
[311944811,1705511453680,-1847.21,0.00022602,2]
[311944813,1705511453690,-500.0,0.00022602,2]
[311944815,1705511453699,-500.0,0.00022602,2]
[311944817,1705511453708,-589.25,0.00022602,2]
[311944819,1705511453718,-500.0,0.00022602,2]
[311944821,1705511453727,-1074.3,0.00022602,2]
[311944823,1705511453736,-1475.16,0.00022602,2]
[311944825,1705511453745,-879.42,0.00022602,2]
[311944827,1705511453755,-500.0,0.00022602,2]
[311944829,1705511453764,-500.0,0.00022602,2]
[311944831,1705511453774,-1239.9,0.00022602,2]
[311944833,1705511453783,-1687.12,0.00022602,2]
[311944835,1705511453792,-9544.11,0.00022602,2]
[311944837,1705511453801,-500.0,0.00022602,2]
[311944839,1705511453810,-1107.92,0.00022602,2]
[311944841,1705511453819,-500.0,0.00022602,2]
[311944843,1705511453828,-500.0,0.00022602,2]
[311944845,1705511453837,-8615.35,0.00022602,2]
[311944847,1705511453846,-500.0,0.00022602,2]
[311944849,1705511453855,-500.0,0.00022602,2]
[311944851,1705511453864,-515.56752173,0.00022602,2]
[311944853,1705511453874,-505.36838094,0.00022602,2]
[311944855,1705511453883,-1397.54,0.00022602,2]
[311944857,1705511453892,-500.0,0.00022602,2]
[311944859,1705511453903,-500.0,0.00022602,2]
[311944860,1705511453912,-1038.52,0.00022602,2]
[311944863,1705511453922,-500.0,0.00022602,2]
[311944864,1705511453932,-17.18768851,0.00022602,2]
[311944867,1705511453945,-482.81231149,0.00022602,2]
[311944869,1705511453955,-3716.35,0.00022602,2]
[311944871,1705511453964,-621.0937423,0.00022602,2]
[311944873,1705511453974,-500.0,0.00022602,2]
[311944875,1705511453984,-5198.47,0.00022602,2]
[311944876,1705511453994,-19836.71,0.00022602,2]
[311944879,1705511454007,-518.13,0.00022602,2]
[311944880,1705511454015,-6036.66,0.00022602,2]
[311944883,1705511454025,-819.82,0.00022644,2]
[311944885,1705511454034,-819.82,0.00022644,2]
[311944887,1705511454045,-819.82,0.00022644,2]
[311944888,1705511454055,-819.82,0.00022644,2]
[311944891,1705511454066,-819.97,0.00022644,2]
[311944893,1705511454077,-8263.3263177,0.00022644,2]
[311944895,1705511454086,-1198.448236,0.00022739,2]
[311944897,1705511454095,-1198.448236,0.00022739,2]
[311944899,1705511454104,-500.0,0.00022739,2]
[311944900,1705511454114,-1035.93,0.00022739,2]
[311944902,1705511454123,-500.0,0.00022739,2]
[311944905,1705511454132,-500.0,0.00022739,2]
[311944906,1705511454142,-500.0,0.00022739,2]
[311944908,1705511454152,-635.29,0.00022739,2]
[311944911,1705511454162,-508.45398065,0.00022739,2]
[311944913,1705511454171,-500.0,0.00022739,2]
[311944914,1705511454181,-500.0,0.00022739,2]
[311944916,1705511454190,-500.0,0.00022739,2]
[311944919,1705511454200,-1760.45,0.00022739,2]
[311944920,1705511454209,-500.0,0.00022739,2]
[311944923,1705511454219,-500.0,0.00022739,2]
[311944925,1705511454229,-481.41584895,0.00022739,2]
[311944927,1705511454238,-918.46,0.00022739,2]
[311944929,1705511454247,-500.0,0.00022739,2]
[311944930,1705511454256,-500.0,0.00022739,2]
[311944932,1705511454266,-500.0,0.00022739,2]
[311944934,1705511454275,-500.0,0.00022739,2]
[311944936,1705511454284,-500.0,0.00022739,2]
[311944938,1705511454294,-500.0,0.00022739,2]
[311944940,1705511454305,-515.76,0.00022739,2]
[311944943,1705511454314,-826.41,0.00022739,2]
[311944944,1705511454324,-383.96915112,0.00022739,2]
[311944946,1705511454334,-500.0,0.00022739,2]
[311944949,1705511454344,-988.64,0.00022739,2]
[311944950,1705511454353,-629.83,0.00022739,2]
[311944952,1705511454363,-500.0,0.00022739,2]
[311944954,1705511454372,-500.0,0.00022739,2]
[311944956,1705511454382,-500.0,0.00022739,2]
[311944958,1705511454391,-1783.06,0.00022739,2]
[311944960,1705511454401,-510.54,0.00022739,2]
[311944962,1705511454410,-627.6,0.00022739,2]
[311944964,1705511454419,-261.30404431,0.00022739,2]
[311944966,1705511454428,-500.0,0.00022739,2]
[311944968,1705511454438,-5429.02,0.00022739,2]
[311944970,1705511454447,-799.35,0.00022739,2]
[311944972,1705511454456,-500.0,0.00022739,2]
[311944974,1705511454466,-619.60676546,0.00022739,2]
[311944976,1705511454475,-919.8,0.00022739,2]
[311944978,1705511454484,-539.93,0.00022739,2]
[311944980,1705511454493,-1847.21,0.00022739,2]
[311944982,1705511454503,-589.25,0.00022739,2]
[311944983,1705511454512,-500.0,0.00022739,2]
[311944985,1705511454521,-1074.3,0.00022739,2]
[311944987,1705511454530,-749.20937135,0.00022739,2]
[311944996,1705511454607,-725.95062865,0.00022739,2]
[311944998,1705511454618,-879.42,0.00022739,2]
[311945000,1705511454628,-500.0,0.00022739,2]
[311945002,1705511454637,-500.0,0.00022739,2]
[311945004,1705511454646,-1239.9,0.00022739,2]
[311945007,1705511454657,-1687.12,0.00022739,2]
[311945008,1705511454667,-9544.11,0.00022739,2]
[311945010,1705511454677,-500.0,0.00022739,2]
[311945012,1705511454687,-1107.92,0.00022739,2]
[311945014,1705511454697,-8615.35,0.00022739,2]
[311945016,1705511454707,-500.0,0.00022739,2]
[311945018,1705511454716,-1397.54,0.00022739,2]
[311945020,1705511454726,-500.0,0.00022739,2]
[311945022,1705511454735,-500.0,0.00022739,2]
[311945024,1705511454745,-1038.52,0.00022739,2]
[311945027,1705511454755,-500.0,0.00022739,2]
[311945029,1705511454766,-500.0,0.00022739,2]
[311945031,1705511454778,-3716.35,0.00022739,2]
[311945033,1705511454787,-500.0,0.00022739,2]
[311945035,1705511454796,-5198.47,0.00022739,2]
[311945037,1705511454806,-2206.32719253,0.00022739,2]
[311945039,1705511454818,-17630.38280747,0.00022739,2]
[311945041,1705511454828,-518.13,0.00022739,2]
[311945043,1705511454837,-6036.66,0.00022739,2]
[311945045,1705511454846,-153.0,0.0002274,2]
[311945047,1705511454858,-153.0,0.0002274,2]
[311945049,1705511454868,-153.0,0.0002274,2]
[311945051,1705511454878,-153.0,0.0002274,2]
[311945053,1705511454888,-153.0,0.0002274,2]
[311945055,1705511454897,-153.0,0.0002274,2]
[311945057,1705511454907,-153.0,0.0002274,2]
[311945059,1705511454916,-153.0,0.0002274,2]
[311945061,1705511454925,-153.0,0.0002274,2]
[311945062,1705511454934,-307.6228574,0.0002274,2]
[311945064,1705511454943,-153.0,0.0002274,2]
[311945067,1705511454953,-153.0,0.0002274,2]
[311945068,1705511454962,-153.0,0.0002274,2]
[311945070,1705511454971,-320.4721085,0.0002274,2]
[311945072,1705511454980,-198.957615,0.0002274,2]
[311945074,1705511454990,-153.0,0.0002274,2]
[311945076,1705511455003,-198.957615,0.0002274,2]
[311945079,1705511455012,-198.957615,0.0002274,2]
[311945081,1705511455022,-153.0,0.0002274,2]
[311945082,1705511455031,-200.0,0.00022763,7]
[311945084,1705511455041,-272.707937,0.00022874,2]
[311945087,1705511455052,-272.707937,0.00022874,2]
[311945088,1705511455061,-5625.83086011,0.00022874,2]
[311945091,1705511455072,-1259.40069592,0.00022874,2]
[311945092,1705511455082,-20848.89855073,0.00022874,2]
[311945094,1705511455091,-344.31274958,0.00022875,2]
[311945096,1705511455100,-8193.12070066,0.00022875,2]
[311945098,1705511455109,-151.0,0.00022876,2]
[311945100,1705511455118,-500.0,0.00022876,2]
[311945102,1705511455128,-1035.93,0.00022876,2]
[311945104,1705511455138,-500.0,0.00022876,2]
[311945106,1705511455147,-500.0,0.00022876,2]
[311945108,1705511455158,-500.0,0.00022876,2]
[311945110,1705511455168,-635.29,0.00022876,2]
[311945112,1705511455177,-500.0,0.00022876,2]
[311945114,1705511455187,-625.84379693,0.00022876,2]
[311945116,1705511455197,-500.0,0.00022876,2]
[311945118,1705511455206,-1760.45,0.00022876,2]
[311945120,1705511455216,-500.0,0.00022876,2]
[311945122,1705511455225,-500.0,0.00022876,2]
[311945124,1705511455235,-918.46,0.00022876,2]
[311945125,1705511455243,-500.0,0.00022876,2]
[311945126,1705511455252,-500.0,0.00022876,2]
[311945127,1705511455262,-500.0,0.00022876,2]
[311945128,1705511455271,-500.0,0.00022876,2]
[311945129,1705511455280,-515.76,0.00022876,2]
[311945130,1705511455289,-826.41,0.00022876,2]
[311945131,1705511455297,-988.64,0.00022876,2]
[311945132,1705511455306,-629.83,0.00022876,2]
[311945133,1705511455315,-500.0,0.00022876,2]
[311945134,1705511455324,-500.0,0.00022876,2]
[311945135,1705511455333,-500.0,0.00022876,2]
[311945136,1705511455342,-1783.06,0.00022876,2]
[311945137,1705511455351,-510.54,0.00022876,2]
[311945138,1705511455360,-627.6,0.00022876,2]
[311945139,1705511455369,-5429.02,0.00022876,2]
[311945140,1705511455377,-799.35,0.00022876,2]
[311945141,1705511455386,-500.0,0.00022876,2]
[311945143,1705511455395,-919.8,0.00022876,2]
[311945144,1705511455405,-539.93,0.00022876,2]
[311945146,1705511455414,-1847.21,0.00022876,2]
[311945148,1705511455423,-589.25,0.00022876,2]
[311945150,1705511455432,-500.0,0.00022876,2]
[311945152,1705511455442,-1074.3,0.00022876,2]
[311945154,1705511455451,-879.42,0.00022876,2]
[311945156,1705511455464,-1475.16,0.00022876,2]
[311945158,1705511455474,-500.0,0.00022876,2]
[311945160,1705511455483,-500.0,0.00022876,2]
[311945162,1705511455493,-1239.9,0.00022876,2]
[311945164,1705511455503,-1687.12,0.00022876,2]
[311945166,1705511455512,-9544.11,0.00022876,2]
[311945168,1705511455521,-1107.92,0.00022876,2]
[311945170,1705511455531,-8615.35,0.00022876,2]
[311945178,1705511455597,-500.0,0.00022876,2]
[311945180,1705511455607,-1397.54,0.00022876,2]
[311945182,1705511455617,-500.0,0.00022876,2]
[311945184,1705511455627,-500.0,0.00022876,2]
[311945186,1705511455637,-1038.52,0.00022876,2]
[311945188,1705511455646,-500.0,0.00022876,2]
[311945190,1705511455656,-263.23548355,0.00022876,2]
[311945192,1705511455665,-3716.35,0.00022876,2]
[311945194,1705511455674,-500.0,0.00022876,2]
[311945196,1705511455683,-5198.47,0.00022876,2]
[311945198,1705511455692,-19836.71,0.00022876,2]
[311945200,1705511455701,-518.13,0.00022876,2]
[311945202,1705511455710,-6036.66,0.00022876,2]
[311945204,1705511455719,-166.666666,0.00022944,2]
[311945206,1705511455728,-8674.48922337,0.00023,2]
[311945208,1705511455740,-28627.51077663,0.00023,2]
[311945210,1705511455749,-621.45964772,0.00023005,2]
[311945212,1705511455758,-1198.448236,0.00023013,2]
[311945214,1705511455767,-1198.448236,0.00023013,2]
[311945216,1705511455777,-272.707937,0.00023013,2]
[311945218,1705511455786,-272.707937,0.00023013,2]
[311945220,1705511455796,-500.0,0.00023013,2]
[311945222,1705511455805,-1035.93,0.00023013,2]
[311945224,1705511455814,-500.0,0.00023013,2]
[311945226,1705511455823,-500.0,0.00023013,2]
[311945228,1705511455832,-500.0,0.00023013,2]
[311945230,1705511455841,-635.29,0.00023013,2]
[311945232,1705511455850,-500.0,0.00023013,2]
[311945234,1705511455859,-500.0,0.00023013,2]
[311945235,1705511455869,-1760.45,0.00023013,2]
[311945237,1705511455878,-500.0,0.00023013,2]
[311945239,1705511455887,-171.47371025,0.00023013,2]
[311945244,1705511455919,-249.993024,0.00023013,2]
[311945246,1705511455932,-496.99326575,0.00023013,2]
[311945248,1705511455941,-500.0,0.00023013,2]
[311945250,1705511455950,-461.05718927,0.00023013,2]
[311945252,1705511455958,-500.0,0.00023013,2]
[311945254,1705511455973,-217.38257896,0.00023013,2]
[311945256,1705511455982,-515.76,0.00023013,2]
[311945258,1705511455991,-826.41,0.00023013,2]
[311945260,1705511456003,-988.64,0.00023013,2]
[311945262,1705511456012,-629.83,0.00023013,2]
[311945264,1705511456021,-500.0,0.00023013,2]
[311945266,1705511456030,-500.0,0.00023013,2]
[311945268,1705511456039,-500.0,0.00023013,2]
[311945270,1705511456048,-1783.06,0.00023013,2]
[311945272,1705511456057,-510.54,0.00023013,2]
[311945274,1705511456066,-627.6,0.00023013,2]
[311945275,1705511456075,-5429.02,0.00023013,2]
[311945277,1705511456085,-799.35,0.00023013,2]
[311945279,1705511456094,-500.0,0.00023013,2]
[311945282,1705511456104,-919.8,0.00023013,2]
[311945283,1705511456114,-539.93,0.00023013,2]
[311945286,1705511456123,-1847.21,0.00023013,2]
[311945287,1705511456133,-589.25,0.00023013,2]
[311945289,1705511456141,-500.0,0.00023013,2]
[311945291,1705511456152,-1074.3,0.00023013,2]
[311945293,1705511456161,-879.42,0.00023013,2]
[311945295,1705511456171,-1475.16,0.00023013,2]
[311945297,1705511456179,-500.0,0.00023013,2]
[311945299,1705511456189,-500.0,0.00023013,2]
[311945301,1705511456198,-1239.9,0.00023013,2]
[311945303,1705511456207,-1687.12,0.00023013,2]
[311945305,1705511456216,-9544.11,0.00023013,2]
[311945307,1705511456226,-1107.92,0.00023013,2]
[311945309,1705511456235,-8615.35,0.00023013,2]
[311945311,1705511456244,-217.70811977,0.00023013,2]
[311945313,1705511456253,-1397.54,0.00023013,2]
[311945315,1705511456262,-500.0,0.00023013,2]
[311945317,1705511456271,-500.0,0.00023013,2]
[311945319,1705511456281,-1038.52,0.00023013,2]
[311945321,1705511456290,-500.0,0.00023013,2]
[311945323,1705511456299,-3716.35,0.00023013,2]
[311945325,1705511456308,-500.0,0.00023013,2]
[311945327,1705511456317,-5198.47,0.00023013,2]
[311945329,1705511456327,-17055.31954625,0.00023013,2]
[311945338,1705511456402,-500.0,0.00021917,2]
[311945340,1705511456411,-9.95758116,0.0002274,2]
[311945361,1705511456607,-153.0,0.000219,2]
[311945363,1705511456618,-1390.0,0.00021907,3]
[311945365,1705511456628,-143.04241884,0.0002274,2]
[311945367,1705511456638,-2781.39045375,0.00023013,2]
[311945369,1705511456648,-518.13,0.00023013,2]
[311945371,1705511456659,-6036.66,0.00023013,2]
[311945373,1705511456668,-3611.19133811,0.000231,2]
[311945375,1705511456677,-3611.19133811,0.000231,2]
[311945377,1705511456686,-3611.19133811,0.000231,2]
[311945379,1705511456695,-3611.19133811,0.000231,2]
[311945381,1705511456704,-3611.19133811,0.000231,2]
[311945383,1705511456713,-3611.19133811,0.000231,2]
[311945385,1705511456722,-3611.19133811,0.000231,2]
[311945387,1705511456731,-3611.19133811,0.000231,2]
[311945389,1705511456741,-3611.19133811,0.000231,2]
[311945391,1705511456750,-3611.19133811,0.000231,2]
[311945393,1705511456759,-151.0,0.000231,2]
[311945395,1705511456769,-500.0,0.0002315,2]
[311945397,1705511456778,-1035.93,0.0002315,2]
[311945399,1705511456787,-500.0,0.0002315,2]
[311945401,1705511456795,-500.0,0.0002315,2]
[311945403,1705511456804,-500.0,0.0002315,2]
[311945405,1705511456814,-635.29,0.0002315,2]
[311945407,1705511456823,-500.0,0.0002315,2]
[311945409,1705511456832,-1760.45,0.0002315,2]
[311945411,1705511456842,-500.0,0.0002315,2]
[311945413,1705511456851,-918.46,0.0002315,2]
[311945415,1705511456860,-500.0,0.0002315,2]
[311945417,1705511456869,-500.0,0.0002315,2]
[311945419,1705511456878,-515.76,0.0002315,2]
[311945421,1705511456887,-826.41,0.0002315,2]
[311945423,1705511456896,-988.64,0.0002315,2]
[311945426,1705511456915,-629.83,0.0002315,2]
[311945428,1705511456932,-500.0,0.0002315,2]
[311945431,1705511456949,-500.0,0.0002315,2]
[311945434,1705511456967,-1783.06,0.0002315,2]
[311945437,1705511456982,-510.54,0.0002315,2]
[311945439,1705511457000,-627.6,0.0002315,2]
[311945442,1705511457017,-5429.02,0.0002315,2]
[311945445,1705511457032,-799.35,0.0002315,2]
[311945448,1705511457049,-500.0,0.0002315,2]
[311945450,1705511457064,-919.8,0.0002315,2]
[311945453,1705511457083,-539.93,0.0002315,2]
[311945456,1705511457103,-1847.21,0.0002315,2]
[311945459,1705511457119,-589.25,0.0002315,2]
[311945461,1705511457131,-500.0,0.0002315,2]
[311945464,1705511457147,-1074.3,0.0002315,2]
[311945466,1705511457162,-1475.16,0.0002315,2]
[311945469,1705511457176,-879.42,0.0002315,2]
[311945471,1705511457191,-500.0,0.0002315,2]
[311945474,1705511457206,-393.9709161,0.0002315,2]
[311945477,1705511457220,-1239.9,0.0002315,2]
[311945479,1705511457235,-1687.12,0.0002315,2]
[311945482,1705511457249,-9544.11,0.0002315,2]
[311945484,1705511457263,-1107.92,0.0002315,2]
[311945487,1705511457277,-8615.35,0.0002315,2]
[311945489,1705511457291,-1397.54,0.0002315,2]
[311945492,1705511457306,-500.0,0.0002315,2]
[311945494,1705511457322,-186.63788515,0.0002315,2]
[311945497,1705511457337,-1038.52,0.0002315,2]
[311945499,1705511457347,-500.0,0.0002315,2]
[311945501,1705511457356,-3716.35,0.0002315,2]
[311945503,1705511457365,-500.0,0.0002315,2]
[311945505,1705511457375,-5198.47,0.0002315,2]
[311945507,1705511457384,-19836.71,0.0002315,2]
[311945509,1705511457394,-518.13,0.0002315,2]
[311945511,1705511457403,-6036.66,0.0002315,2]